[Event "Baku Open 2024"]
[Site "Baku"]
[Date "2024.07.01"]
[Round "3.2"]
[White "Puranik, Abhimanyu"]
[Black "Balajayeva, Khanim"]
[Result "1-0"]
[ECO "C54"]
[WhiteElo "2632"]
[BlackElo "2385"]
[Annotator "TA"]
[PlyCount "85"]
[EventDate "2024.06.29"]
[EventType "swiss"]
[EventCountry "AZE"]
[SourceTitle "playchess.com"]
[Source "ChessBase"]
[SourceQuality "1"]
[TimeControl "5400+30"]

{[%evp 20,85,0,0,0,0,10,-26,5,0,0,0,0,-3,19,-8,0,-123,-126,-108,45,60,64,52,50,49,86,87,157,122,147,127,133,120,388,388,630,70,55,55,48,48,64,71,125,144,131,59,418,410,390,398,478,496,475,474,598,577,615,576,617,610,714,750,762,747,712,637]} 1. e4 {[%emt 0:00:09]} e5 {[%emt 0:00:07]} 2. Nf3 {[%emt 0:00:08]} Nc6 {[%emt 0:00:06]} 3. Bc4 {[%emt 0:00:18]} Nf6 {[%emt 0:00:10]} 4. d3 {[%emt 0:00:06]} Bc5 {[%emt 0:00:07]} 5. O-O {[%emt 0:00:40]} d6 {[%emt 0:00:08]} 6. c3 {[%emt 0:00:18]} a5 {[%emt 0:00:51] C54: Giuoco Piano: 4 c3 Nf6, main lines with 5 d4 and 5 d3.} 7. Nbd2 {[%emt 0:00:20]} O-O {[%emt 0:00:10]} 8. Re1 {[%emt 0:00:24]} Be6 {[%emt 0:04:04]} 9. Bb5 {[%emt 0:01:14]} Ba7 {[%emt 0:02:34]} 10. Nf1 {[%emt 0:01:24]} Ne7 {[%emt 0:02:33]} 11. d4 {[%emt 0:05:20]} Ng6 {[%emt 0:02:21]} 12. h3 $1 {[%emt 0:01:33]} c6 {[%emt 0:00:54]} 13. Ba4 {[%emt 0:10:46]} Nh5 {[%emt 0:12:19]} 14. Bg5 $146 {[%emt 0:17:12]} ({Predecessor:} 14. Bc2 Nhf4 15. Ng3 Qd7 16. Nf5 f6 17. Be3 Rfd8 18. Kh2 Bf7 19. g3 Ne6 20. Qe2 {0-1 Kollars,D (2648)-Horvath,D (2488) Olympiad-44 Chennai 2022 (3.4)}) 14... f6 {[%emt 0:03:59]} 15. Be3 {[%emt 0:00:05]} Nhf4 {[%emt 0:01:58]} 16. Bb3 {[%emt 0:01:31]} Qe7 {[%emt 0:04:22]} 17. Ng3 {[%emt 0:01:55]} d5 {[%emt 0:17:36]} 18. dxe5 {[%emt 0:08:57]} (18. Bc2 $11) 18... fxe5 $17 {[%emt 0:00:49]} 19. exd5 {[%emt 0:02:48]} Bxd5 $2 {[%emt 0:05:34]} (19... cxd5 $17 {[%cal Oa5a4] Strongly threatening ...a4!} 20. Bxa7 Rxa7 21. Nxe5 Nh4) 20. Bxf4 $14 {[%emt 0:04:06]} (20. Bxd5+ cxd5 21. Bxf4 Nxf4 $11) 20... Nxf4 {[%emt 0:04:46]} 21. Rxe5 {[%emt 0:02:12]} Qc7 {[%emt 0:01:24]} 22. Bxd5+ {[%emt 0:03:58]} Nxd5 {[%emt 0:03:11]} 23. Nf5 {[%emt 0:05:15]} Bb8 {[%emt 0:08:04]} (23... Rfe8 $142 24. Rxe8+ Rxe8) 24. N5d4 {[%emt 0:09:29]} Qb6 {[%emt 0:03:29]} 25. Re2 {[%emt 0:00:59]} Nf4 {[%emt 0:00:25]} 26. Re7 {[%emt 0:01:53]} a4 $2 {[%emt 0:06:08][%mdl 8192]} (26... c5 $16 27. Qb3+ Qxb3 28. Nxb3 a4) 27. Nf5 $18 {[%emt 0:08:06]} Kh8 $2 {[%emt 0:07:46] [#]} (27... Rxf5 28. Qd7 Qc7) 28. Ng5 $2 {[%emt 0:09:22]} (28. Nxg7 Ba7 29. Qe1 (29. Qxa4 $2 Qxf2+ 30. Kh2 Qxg2#) 29... Qc5 $11) (28. Qd7 $1 $18 Qd8 (28... Qb5 29. Re8) 29. Re8 (29. Qxb7 Ra7 $17) (29. Nxg7 Bd6 $16)) 28... Ba7 $1 $14 {[%emt 0:02:37]} 29. Qd4 $1 {[%emt 0:01:48]} (29. Nxg7 $2 Qxf2+ 30. Kh2 Qxg2#) 29... Qxd4 {[%emt 0:00:42]} 30. Nxd4 {[%emt 0:00:01]} a3 {[%emt 0:04:24]} 31. bxa3 {[%emt 0:01:03]} Nd5 {[%emt 0:01:17]} (31... h6 $142 32. Ngf3 Bxd4 33. Nxd4 Rxa3) 32. Rxb7 $16 {[%emt 0:00:06]} Nxc3 {[%emt 0:00:02]} 33. Nde6 {[%emt 0:00:25]} (33. Nxc6 $6 Bxf2+ 34. Kh1 h6 $14) (33. Ngf3 $16) 33... Ne2+ $2 {[%emt 0:00:18][%mdl 8192]} ({Black should try} 33... Rf6 $14) 34. Kh1 $18 {[%emt 0:00:22]} Rxf2 {[%emt 0:00:58]} 35. Ne4 $1 {[%emt 0:00:43]} (35. Rxg7 Rf1+ (35... Ng3+ $2 36. Kh2 $18) 36. Rxf1 Ng3+ 37. Kh2 Nxf1+ 38. Kh1 Ng3+ 39. Kh2 Nf1+ 40. Kh1 Ng3+ 41. Kh2 Nf1+ $11) 35... Rf5 {[%emt 0:00:41]} 36. Nc7 {[%emt 0:00:54]} ({Not} 36. Rxg7 Nd4 $16) (36. Nxg7 Rf4 37. Nd2 Ng3+ 38. Kh2 Rf2 39. Kxg3 Rxd2 $11) 36... Rf7 {[%emt 0:00:55] [#]} 37. Rab1 $1 {[%emt 0:00:28]} Raf8 {[%emt 0:00:37]} 38. Rxa7 {[%emt 0:00:06]} h6 {[%emt 0:00:01]} 39. Rab7 {[%emt 0:01:22]} Re7 {[%emt 0:00:05]} 40. Nc5 {[%emt 0:00:12]} ({Weaker is} 40. Rb8 Rxb8 41. Rxb8+ Kh7 $16) 40... Ng3+ {[%emt 0:01:15]} 41. Kh2 {[%emt 0:00:21]} Nf1+ {[%emt 0:00:01]} 42. Kg1 {[%emt 0:00:06]} Nd2 {[%emt 0:00:02]} 43. Rb8 {[%emt 0:00:40]} 1-0

[Event "Baku Open 2024"]
[Site "Baku"]
[Date "2024.07.01"]
[Round "3.3"]
[White "Stribuk, Artiom"]
[Black "Aditya Mittal"]
[Result "1/2-1/2"]
[ECO "A29"]
[WhiteElo "2422"]
[BlackElo "2595"]
[Annotator "TA"]
[PlyCount "154"]
[EventDate "2024.06.29"]
[EventType "swiss"]
[EventCountry "AZE"]
[SourceTitle "playchess.com"]
[Source "ChessBase"]
[SourceQuality "1"]
[TimeControl "5400+30"]

{[%evp 49,153,-45,-53,-53,-24,-25,-4,-27,6,0,11,12,6,0,0,0,0,-8,-8,-8,0,0,0,-10,0,-9,0,0,10,0,0,-8,-4,-4,-8,-15,-15,-15,-15,-15,-15,-15,-15,-15,0,0,0,0,0,0,0,0,0,-54,0,0,0,0,0,0,0,0,0,0,0,0,0,0,0,0,0,0,0,0,0,0,0,0,0,0,0,0,0,0,0,0,0,0,0,0,0,0,0,0,0,0,0,0,0,0,0,0,0,0,0,0]} 1. c4 {[%emt 0:00:03]} e5 {[%emt 0:00:14]} 2. g3 {[%emt 0:00:09]} Nf6 {[%emt 0:00:03]} 3. Bg2 {[%emt 0:00:09]} d5 {[%emt 0:00:01]} 4. cxd5 {[%emt 0:00:08]} Nxd5 {[%emt 0:00:02]} 5. Nf3 {[%emt 0:00:10]} Nc6 {[%emt 0:00:05]} 6. O-O {[%emt 0:00:11]} Nb6 {[%emt 0:00:32]} 7. Nc3 {[%emt 0:00:09]} Be7 {[%emt 0:00:09]} 8. b3 {[%emt 0:00:08]} O-O {[%emt 0:01:40]} 9. Bb2 {[%emt 0:00:05]} Re8 {[%emt 0:03:14] A29: English Opening: Four Knights Variation with 4 g3.} 10. Rc1 {[%emt 0:01:05]} a5 {[%emt 0:08:38]} 11. Ne4 {[%emt 0:29:57]} f5 $146 {[%emt 0:08:17]} ({Predecessor:} 11... Bf8 12. Nc5 Bxc5 13. Rxc5 f6 14. d4 e4 15. Ne1 Qd6 16. e3 a4 17. Qc2 axb3 18. axb3 {0-1 Li,E (2266)-Diaz Perez,M (2459) Titled Tuesday intern op 03rd Aug blitz 2021 (9)}) 12. Nc5 {[%emt 0:00:12]} e4 {[%emt 0:07:30]} 13. Ne5 {[%emt 0:01:03]} Nxe5 {[%emt 0:07:27]} 14. Bxe5 {[%emt 0:00:08]} Nd5 {[%emt 0:00:15]} 15. Bb2 {[%emt 0:09:32]} b6 {[%emt 0:00:48]} 16. Na4 {[%emt 0:00:06]} Ba6 {[%emt 0:00:48]} 17. Nc3 {[%emt 0:10:34]} Nxc3 {[%emt 0:06:15]} 18. Bxc3 {[%emt 0:00:10]} Ba3 {[%emt 0:01:08]} 19. Ra1 {[%emt 0:10:26]} Qg5 {[%emt 0:11:16]} 20. d3 {[%emt 0:03:51]} Rad8 {[%emt 0:02:11]} 21. b4 {[%emt 0:02:17]} axb4 {[%emt 0:04:29]} 22. Qa4 {[%emt 0:01:20]} Qe7 {[%emt 0:10:28]} 23. Qxa6 {[%emt 0:12:12]} bxc3 {[%emt 0:00:02]} 24. Qc4+ {[%emt 0:00:06]} Qe6 {[%emt 0:06:18]} 25. Qxc3 {[%emt 0:00:07]} Bc5 {[%emt 0:00:01]} 26. Rad1 {[%emt 0:02:01]} Qxa2 {[%emt 0:01:12]} 27. e3 {[%emt 0:00:36]} Qa4 {[%emt 0:06:20]} 28. Rd2 {[%emt 0:05:06]} Kh8 {[%emt 0:02:18]} (28... Rxd3 {is interesting.} 29. Rxd3 exd3 30. Bd5+ Kh8) 29. dxe4 {[%emt 0:03:52]} Rxd2 {[%emt 0:02:35]} 30. Qxd2 {[%emt 0:00:02]} fxe4 {[%emt 0:00:06]} 31. Qd5 {[%emt 0:00:55]} Bd6 {[%emt 0:00:59]} 32. h4 {[%emt 0:01:18]} Re5 {[%emt 0:00:53]} 33. Qb7 {[%emt 0:00:42]} g6 {[%emt 0:01:28]} 34. Rc1 {[%emt 0:00:59]} Qa3 {[%emt 0:01:27]} 35. Rd1 {[%emt 0:02:32]} Qb4 {[%emt 0:00:58]} 36. Ra1 {[%emt 0:04:23]} Kg7 {[%emt 0:00:01]} 37. Qc6 {[%emt 0:00:38]} Re7 {[%emt 0:01:54]} 38. Qc2 {[%emt 0:00:17]} h5 {[%emt 0:02:22]} 39. Rb1 {[%emt 0:00:35]} Qc5 {[%emt 0:00:54]} (39... Qa3 {with more complications.} 40. Bxe4 Bxg3 41. Bxg6 Bxf2+ 42. Kxf2 Qxe3+ 43. Kg2 Rd7) 40. Bxe4 {[%emt 0:00:26]} Bxg3 {[%emt 0:02:42]} 41. Qxc5 {[%emt 0:01:19]} bxc5 {[%emt 0:00:00]} 42. fxg3 {[%emt 0:00:56]} Rxe4 {[%emt 0:00:01]} 43. Rb7 {[%emt 0:00:11]} Re7 {[%emt 0:00:29]} 44. Rb5 {[%emt 0:00:32]} Re5 {[%emt 0:01:23]} 45. Rb7 {[%emt 0:00:11]} Kf6 {[%emt 0:01:27]} 46. Rxc7 {[%emt 0:00:06]} Ke6 {[%emt 0:00:05]} 47. Kf2 {[%emt 0:00:47]} Kd5 {[%emt 0:00:20]} 48. Ke2 {[%emt 0:00:46]} c4 {[%emt 0:01:00]} 49. Rc8 {[%emt 0:00:28]} Re6 {[%emt 0:00:15]} 50. Kd2 {[%emt 0:00:56]} Ra6 {[%emt 0:00:48]} 51. Rd8+ {[%emt 0:00:15]} (51. Ke2 $11) 51... Rd6 {[%emt 0:01:14]} (51... Ke4 $15) 52. Rc8 {[%emt 0:00:23]} Rc6 {[%emt 0:00:32]} 53. Re8 {[%emt 0:00:47]} Rf6 {[%emt 0:00:19]} 54. Rd8+ {[%emt 0:00:36]} Kc5 {[%emt 0:00:51]} 55. Rc8+ {[%emt 0:00:28]} Rc6 {[%emt 0:00:04]} 56. Re8 {[%emt 0:00:35]} Rb6 {[%emt 0:00:24]} 57. Kc3 {[%emt 0:00:24]} Rb3+ {[%emt 0:00:22]} 58. Kc2 {[%emt 0:00:04]} Rd3 {[%emt 0:00:45]} 59. Rc8+ {[%emt 0:00:30]} Kb5 {[%emt 0:00:38]} 60. Rb8+ {[%emt 0:00:34]} Kc5 {[%emt 0:00:01]} 61. Rc8+ {[%emt 0:00:20]} Kb5 {[%emt 0:00:47]} 62. Rb8+ {[%emt 0:00:07]} Kc6 {[%emt 0:00:42]} 63. Rc8+ {[%emt 0:00:52]} Kd5 {[%emt 0:00:52]} 64. Rg8 {[%emt 0:00:06]} Rxe3 {[%emt 0:00:25]} 65. Rxg6 {[%emt 0:00:04]} Kd4 {[%emt 0:00:29]} 66. Rd6+ {[%emt 0:00:23]} Kc5 {[%emt 0:00:15]} 67. Rg6 {[%emt 0:00:15]} Kd4 {[%emt 0:00:43]} 68. Rd6+ {[%emt 0:00:05]} Ke4 {[%emt 0:00:29]} 69. Re6+ {[%emt 0:00:35]} Kf3 {[%emt 0:00:10]} 70. Rxe3+ {[%emt 0:01:00]} Kxe3 {[%emt 0:00:01]} 71. Kc3 {[%emt 0:00:07]} Kf3 {[%emt 0:00:04]} 72. Kxc4 {[%emt 0:00:04]} Kxg3 {[%emt 0:00:02]} 73. Kd3 {[%emt 0:00:06]} Kxh4 {[%emt 0:00:03]} 74. Ke2 {[%emt 0:00:05]} Kg3 {[%emt 0:00:03]} 75. Kf1 {[%emt 0:00:07]} h4 {[%emt 0:00:01]} 76. Kg1 {[%emt 0:00:05]} h3 {[%emt 0:00:03]} 77. Kh1 {[%emt 0:00:04]} h2 {[%emt 0:00:03]} 1/2-1/2

[Event "Baku Open 2024"]
[Site "Baku"]
[Date "2024.07.01"]
[Round "3.4"]
[White "Muradli, Mahammad"]
[Black "Atakishiyev, Elmar"]
[Result "1/2-1/2"]
[ECO "D12"]
[WhiteElo "2575"]
[BlackElo "2356"]
[Annotator "TA"]
[PlyCount "56"]
[EventDate "2024.06.29"]
[EventType "swiss"]
[EventCountry "AZE"]
[SourceTitle "playchess.com"]
[Source "ChessBase"]
[SourceQuality "1"]
[TimeControl "5400+30"]

{[%evp 15,56,17,27,12,28,14,26,18,41,33,45,0,33,26,35,18,38,64,61,46,59,48,58,29,50,27,44,24,41,21,22,33,31,0,22,18,20,0,0,-9,0,-43,0]} 1. d4 {[%emt 0:06:07]} Nf6 {[%emt 0:00:06]} 2. Nf3 {[%emt 0:00:05]} d5 {[%emt 0:00:08]} 3. e3 {[%emt 0:00:06]} Bf5 {[%emt 0:02:11]} 4. c4 {[%emt 0:01:23]} c6 {[%emt 0:03:09]} 5. Nc3 {[%emt 0:02:50]} e6 {[%emt 0:00:07]} 6. Nh4 {[%emt 0:00:31]} Be4 {[%emt 0:00:06]} 7. f3 {[%emt 0:02:53]} Bg6 {[%emt 0:00:06]} 8. Qb3 {[%emt 0:03:45]} Qc7 {[%emt 0:00:22]} 9. Bd2 {[%emt 0:00:41]} Be7 {[%emt 0:00:15]} 10. Nxg6 {[%emt 0:09:44]} hxg6 {[%emt 0:00:06]} 11. g3 {[%emt 0:00:09] White has an edge.} Nbd7 {[%emt 0:00:26]} 12. cxd5 {[%emt 0:01:12]} Nxd5 {[%emt 0:11:24]} 13. Kf2 {[%emt 0:12:51]} Rd8 {[%emt 0:03:31]} (13... O-O-O $5) 14. Kg2 {[%emt 0:01:53]} O-O {[%emt 0:05:17]} 15. Be2 {[%emt 0:01:56]} c5 {[%emt 0:16:55]} 16. Rac1 {[%emt 0:10:33]} Nxc3 {[%emt 0:08:08]} 17. bxc3 {[%emt 0:01:34]} Nb8 {[%emt 0:03:02][%cal Bd7b8,Bb8c6,Bc6e5][%mdl 32]} 18. Rhd1 {[%emt 0:04:16]} Nc6 {[%emt 0:00:48]} 19. Be1 {[%emt 0:00:05]} Rd7 {[%emt 0:04:10]} 20. Bf2 {[%emt 0:02:15]} Rfd8 {[%emt 0:00:33]} 21. Rb1 {[%emt 0:03:51]} e5 {[%emt 0:06:46][%cal Re5d4]} 22. dxe5 {[%emt 0:09:09]} Nxe5 {[%emt 0:00:56]} 23. Rxd7 {[%emt 0:00:16]} Rxd7 {[%emt 0:00:26]} 24. Rd1 {[%emt 0:00:36]} Bf6 {[%emt 0:09:17]} 25. e4 {[%emt 0:08:33]} c4 {[%emt 0:02:19]} 26. Qc2 {[%emt 0:00:25]} ({Don't go for} 26. Rxd7 $2 cxb3 27. Rxc7 bxa2 28. Rxb7 (28. Rc8+ $2 Kh7 $19) 28... a1=Q $19 (28... a1=B $2 29. f4 $18)) 26... g5 {[%emt 0:04:29]} 27. Be3 {[%emt 0:06:10]} ({Of course not} 27. Bxa7 Rxd1 28. Qxd1 b6 $19) 27... b5 {[%emt 0:01:48]} 28. Rd2 {[%emt 0:02:14]} a5 {[%emt 0:02:19] Weighted Error Value: White=0.16 (very precise) /Black=0.11 (very precise) .  Inaccurate:     	White=4     	Black=2      OK:         	White=3     	Black=3      Best:        	---       	Black=1} 1/2-1/2

[Event "Baku Open 2024"]
[Site "Baku"]
[Date "2024.07.01"]
[Round "3.5"]
[White "Ibrahimli, Murad"]
[Black "Samadov, Read"]
[Result "1-0"]
[ECO "E71"]
[WhiteElo "2400"]
[BlackElo "2503"]
[Annotator "TA"]
[PlyCount "83"]
[EventDate "2024.06.29"]
[EventType "swiss"]
[EventCountry "AZE"]
[SourceTitle "playchess.com"]
[Source "ChessBase"]
[SourceQuality "1"]
[TimeControl "5400+30"]

{[%evp 10,83,30,25,45,29,34,39,47,56,34,24,34,22,20,21,30,20,68,58,54,56,54,81,72,66,50,47,54,68,66,68,73,73,76,70,75,71,100,55,62,54,63,32,70,27,61,26,106,146,152,168,348,363,357,345,330,207,212,132,222,213,213,192,207,197,29984,29967,29949,29954,29995,29996,29996,29996,29996,2324]} 1. d4 {[%emt 0:00:42]} Nf6 {[%emt 0:00:07]} 2. c4 {[%emt 0:00:08]} g6 {[%emt 0:00:08]} 3. Nc3 {[%emt 0:00:25]} Bg7 {[%emt 0:00:30]} 4. e4 {[%emt 0:00:40]} d6 {[%emt 0:00:06]} 5. h3 {[%emt 0:02:33]} O-O {[%emt 0:05:11]} 6. Be3 {[%emt 0:00:36]} a5 {[%emt 0:01:57]} 7. Nf3 {[%emt 0:02:25]} Na6 {[%emt 0:01:49]} 8. Be2 {[%emt 0:10:10]} e5 {[%emt 0:02:36] White is slightly better.} 9. dxe5 {[%emt 0:08:38]} dxe5 {[%emt 0:00:37]} 10. O-O {[%emt 0:00:06]} (10. Nxe5 Nxe4 11. Nxe4 Bxe5 $11) 10... b6 {[%emt 0:13:28]} 11. Qb1 {[%emt 0:07:49][%cal Of1d1]} Bb7 {[%emt 0:06:15]} 12. Rd1 {[%emt 0:07:09]} Qe8 {[%emt 0:02:48]} 13. Nd5 {[%emt 0:05:40]} Nh5 {[%emt 0:06:03] [#]} (13... Nd7 $11) 14. c5 $1 $14 {[%emt 0:07:50]} Bxd5 {[%emt 0:08:01]} 15. Rxd5 {[%emt 0:02:54]} Nf4 {[%emt 0:09:28]} 16. Bxf4 {[%emt 0:00:10]} exf4 {[%emt 0:00:05]} 17. Bxa6 {[%emt 0:00:41]} Rxa6 {[%emt 0:00:01]} 18. Qd3 {[%emt 0:02:24] Prevents c6.} Ra8 {[%emt 0:02:37] Black is weak on the light squares} 19. cxb6 {[%emt 0:00:28]} cxb6 {[%emt 0:00:11]} 20. e5 {[%emt 0:00:05]} Rc8 {[%emt 0:04:11]} 21. Rd6 {[%emt 0:07:56] Prevents Qc6} Rc5 {[%emt 0:03:04]} (21... Bxe5 22. Re1 (22. Rxb6 Bg7 $11) 22... Rc5 23. Rd5 (23. Rxb6 Qe7 $16)) 22. Rxb6 {[%emt 0:00:50]} Bxe5 {[%emt 0:02:12]} 23. Re1 {[%emt 0:01:04] Hoping for Qa3.} f6 {[%emt 0:00:48]} 24. Rb7 {[%emt 0:11:18] White has more active pieces.} Rf7 {[%emt 0:02:02]} 25. Qb3 {[%emt 0:03:36][%cal Oe1e5]} a4 {[%emt 0:02:33]} 26. Qb4 $36 {[%emt 0:03:09][%mdl 2048] Rxf7 would now be deadly. White has some pressure.} Rxb7 {[%emt 0:01:27]} 27. Qxb7 {[%emt 0:02:29]} (27. Qxc5 $5 Re7 (27... Qb5 28. Qc8+ Kg7 29. Nxe5 $16) 28. Re4 $16) 27... Rb5 {[%emt 0:04:05]} 28. Qe4 {[%emt 0:04:18]} Rxb2 {[%emt 0:02:33]} (28... Rc5 $1 $11) 29. Nxe5 $16 {[%emt 0:00:52]} fxe5 $11 {[%emt 0:00:25][%mdl 4096] Endgame. KQR-KQR} 30. Qd5+ {[%emt 0:00:05]} Kg7 $2 {[%emt 0:05:58]} (30... Qf7 31. Qxe5 Rb7) 31. Rxe5 $18 {[%emt 0:00:12]} (31. Qxe5+ Qxe5 32. Rxe5 Rxa2 33. Re7+ Kg8 $11) 31... Rb1+ {[%emt 0:00:18]} 32. Kh2 {[%emt 0:00:06]} Qf7 {[%emt 0:01:07]} 33. Re6 {[%emt 0:04:15] Qe5+ is the strong threat.} Kh6 {[%emt 0:02:10]} 34. h4 {[%emt 0:02:08][%cal Bh3h4,Bh4h5,Bh5h6][%mdl 32] Threatens to win with Qg5+.} Rb7 {[%emt 0:01:55]} (34... Rb5 $16 35. Qxb5 Qxe6) 35. Qg5+ {[%emt 0:00:49]} Kg7 {[%emt 0:00:01]} 36. Qe5+ {[%emt 0:00:06]} Kh6 {[%emt 0:00:05]} 37. Rf6 {[%emt 0:01:14]} Qxa2 $2 {[%emt 0:02:50]} (37... Qe7 $18 38. Qxf4+ Kg7) 38. Qxf4+ {[%emt 0:00:20] White mates.} Kg7 {[%emt 0:00:02] [#]} 39. h5 $1 {[%emt 0:00:44][%mdl 512]} Rf7 {[%emt 0:03:41]} (39... Qf7 40. h6+) 40. h6+ {[%emt 0:00:11]} Kf8 {[%emt 0:00:05]} 41. Qd6+ {[%emt 0:00:05]} Ke8 {[%emt 0:00:05]} 42. Re6+ {[%emt 0:00:05] Weighted Error Value: White=0.13 (very precise) /Black=0.34.  Mistake:       	---       	Black=5      Inaccurate:     	White=6     	Black=3      OK:         	White=14    	Black=9      Best:        	White=5     	Black=5      Brilliant:      	White=1     	---} (42. Qb8+ $142 Ke7 43. Rd6 (43. Qd6+ Ke8 44. Qe5+ Kd7 45. Rd6+ Kc8 46. Rc6+ Kb7 47. Qb5+ Ka8 48. Qa6+ Ra7 49. Rc8#) 43... Rxf2 44. Qc7+ Kf8 45. Rd8#) 1-0

[Event "Baku Open 2024"]
[Site "Baku"]
[Date "2024.07.01"]
[Round "3.6"]
[White "Movahed, Sina"]
[Black "Raahul V S"]
[Result "1-0"]
[ECO "C70"]
[WhiteElo "2482"]
[BlackElo "2314"]
[Annotator "TA"]
[PlyCount "103"]
[EventDate "2024.06.29"]
[EventType "swiss"]
[EventCountry "AZE"]
[SourceTitle "playchess.com"]
[Source "ChessBase"]
[SourceQuality "1"]
[TimeControl "5400+30"]

{[%evp 9,103,51,41,46,65,64,74,60,77,51,69,64,75,57,70,68,122,86,72,41,122,42,39,45,54,51,58,58,50,55,49,45,56,52,45,46,64,30,34,38,31,20,30,0,0,0,0,8,62,57,55,55,53,56,91,91,135,116,154,145,124,110,206,218,207,209,218,208,233,201,209,221,200,165,203,204,228,220,454,346,301,320,360,362,790,828,848,733,1052,997,1133,968,1025,948,627,225]} 1. e4 {[%emt 0:01:09]} e5 {[%emt 0:00:20]} 2. Nf3 {[%emt 0:00:07]} Nc6 {[%emt 0:00:05]} 3. Bb5 {[%emt 0:00:06][%cal Bf1b5,Bb5a4,Ba4b3][%mdl 32]} a6 {[%emt 0:00:20]} 4. Ba4 {[%emt 0:00:05]} f5 {[%emt 0:00:08]} 5. d4 {[%emt 0:00:14]} exd4 {[%emt 0:00:07]} 6. e5 {[%emt 0:00:06][%cal Oe1g1]} (6. exf5 Qe7+ 7. Kf1 Qe4 $11) 6... b5 {[%emt 0:00:04]} 7. Bb3 {[%emt 0:00:06][%cal Oe1g1] 0-0! would now be deadly.} Na5 {[%emt 0:00:09]} 8. Qxd4 {[%emt 0:00:36] [#] Black must now prevent Bxg8. White is better.} Bb7 {[%emt 0:00:09]} 9. Bd5 {[%emt 0:00:10]} c6 {[%emt 0:00:06]} 10. Bxg8 {[%emt 0:00:06]} Rxg8 {[%emt 0:00:04]} 11. Qd3 {[%emt 0:01:23]} (11. Bg5 $6 Qc7 $11) 11... Qe7 {[%emt 0:00:31]} 12. O-O {[%emt 0:00:34]} Qf7 {[%emt 0:09:25]} ({Black should play} 12... c5 $14) 13. e6 {[%emt 0:19:52]} dxe6 {[%emt 0:00:22]} (13... Qxe6 $2 14. Re1 $18) 14. Ng5 {[%emt 0:00:32][%csl LRf7,LRh7]} Qd7 {[%emt 0:03:53] [#]} 15. Qxd7+ {[%emt 0:00:35]} (15. Qc3 $1 $16 {[%cal Rc3a5]}) 15... Kxd7 $14 {[%emt 0:00:09][%cal Be8d7,Bd7e7,Be7f7,Bf7f6][%mdl 32]} 16. Rd1+ {[%emt 0:00:15]} Ke7 {[%emt 0:05:32]} 17. Nxh7 {[%emt 0:04:45]} c5 {[%emt 0:04:01]} 18. Bf4 {[%emt 0:02:01] Hoping for Bd6+.} Kf7 {[%emt 0:04:21][%cal Oe6e5]} 19. Ng5+ {[%emt 0:04:52]} (19. Nxf8 {simplifies} Raxf8 20. Rd7+ Kg6 21. Nc3) 19... Kf6 {[%emt 0:00:37]} 20. Re1 {[%emt 0:01:54]} Re8 {[%emt 0:05:18]} 21. a4 {[%emt 0:03:29] Threatens to win with axb5.} b4 {[%emt 0:00:54]} 22. Nd2 {[%emt 0:03:39]} Bd5 {[%emt 0:05:28]} 23. Ndf3 {[%emt 0:01:18] White is more active.} Bxf3 {[%emt 0:14:59]} 24. Nxf3 {[%emt 0:00:18]} g5 {[%emt 0:00:32]} 25. Be5+ {[%emt 0:04:08]} Kf7 {[%emt 0:45:26]} 26. Rad1 {[%emt 0:01:33]} g4 {[%emt 0:00:00]} 27. Nd2 {[%emt 0:00:52]} Bh6 {[%emt 0:00:00]} 28. f4 {[%emt 0:04:45]} gxf3 {[%emt 0:00:00]} (28... Rc8 $11) 29. Nxf3 {[%emt 0:00:22]} Nc4 {[%emt 0:00:00]} 30. Rd7+ $1 {[%emt 0:00:53]} Re7 {[%emt 0:00:00]} 31. Rd3 {[%emt 0:00:04]} Rc8 {[%emt 0:00:00]} 32. Re2 {[%emt 0:04:45]} Rb7 {[%emt 0:00:00]} 33. b3 {[%emt 0:00:23]} Nxe5 {[%emt 0:00:00]} 34. Nxe5+ {[%emt 0:00:12]} Kf6 {[%emt 0:00:00]} 35. Nc4 {[%emt 0:03:09] Nd6 is the strong threat.} Ra7 {[%emt 0:00:00]} (35... Bf4 $16) 36. Rd6 $18 {[%emt 0:00:36]} Re8 {[%emt 0:00:00]} 37. a5 {[%emt 0:00:18]} Bf4 {[%emt 0:00:00]} 38. Rc6 {[%emt 0:00:13]} Bc7 {[%emt 0:00:00]} 39. g3 {[%emt 0:01:18]} Bb8 {[%emt 0:00:00]} 40. Kg2 {[%emt 0:02:04]} (40. Rxc5 $6 Rc7 41. Rxc7 (41. Rxf5+ Kxf5 42. Nd6+ Kg5 $17) 41... Bxc7 $16) 40... f4 {[%emt 0:00:00]} 41. gxf4 {[%emt 0:01:25] And now Re4 would win.} (41. Rxc5 Rc7 42. Rh5 Rg7 $14) 41... Bxf4 {[%emt 0:00:00]} 42. Rf2 {[%emt 0:00:12]} (42. Rxc5 $6 Rh8 $16) 42... Kg5 {[%emt 0:00:00]} 43. Kf3 {[%emt 0:03:38]} ({Don't take} 43. Rxc5+ e5 44. Nd6 (44. h4+ Kxh4 45. Kf3 Bg3 $16) 44... Re6 45. Ne4+ Kh6) 43... Rh8 $2 {[%emt 0:00:00]} (43... Bb8 {was necessary.} 44. Ke2 (44. Rxc5+ Kg6 $16) 44... Kg6) 44. Rxc5+ {[%emt 0:01:30]} (44. Rxe6 Kf5 45. Rc6 Rh3+ 46. Ke2 Ke4 $11) 44... e5 {[%emt 0:00:00]} 45. Nxe5 {[%emt 0:00:37]} Rh3+ {[%emt 0:00:00]} 46. Ke4 {[%emt 0:00:09]} Re3+ $2 {[%emt 0:00:00]} (46... Bxe5 47. Rxe5+ (47. Kxe5 Kg6 $18) 47... Kh6) 47. Kd4 {[%emt 0:00:10] White is clearly winning.} Rxe5 {[%emt 0:00:00]} 48. Rxe5+ {[%emt 0:00:02]} Bxe5+ {[%emt 0:00:06]} 49. Kxe5 {[%emt 0:00:14]} Rc7 {[%emt 0:00:56]} 50. Rg2+ {[%emt 0:00:55]} Kh4 {[%emt 0:00:13]} 51. Rd2 {[%emt 0:00:14]} Rc5+ {[%emt 0:00:27]} 52. Ke4 $2 {[%emt 0:33:37] Weighted Error Value: White=0.10 (very precise) /Black=0.20 (precise) .  Mistake:       	White=1     	Black=5      Inaccurate:     	White=2     	Black=3      OK:         	White=19    	Black=15     Best:        	White=3     	Black=6      Strong:       	White=1     	---} (52. Kd6 Rxa5 53. Rd4+ Kh3 54. Rxb4) 1-0